Cogmind - Beta 16.1 @@@ ROGUE MODE // 2026.04.21 @ 11:57:53 Player: SunShine214 Result: Destroyed by VL-7QA(R) with Subdweller Beam Cannon Performance ------------- Evolutions (0) 0 Regions Visited (2) 400 Robots Destroyed (30) 150 Value Destroyed (505) 505 Prototype IDs (0) 0 Alien Tech Used (0) 0 Bonus (0) 0 TOTAL SCORE: 1055 Bonus ------- None Cogmind --------- Core Integrity 0/250 Matter 226/300 Energy 99/100 System Corruption 0% Temperature Cool (9) Movement Core (50) Location -10/Subcaves Parts ------- > --- POWER (1) -------- (None) > --- PROPULSION (2) --- (None) > --- UTILITY (2) ------ (None) > --- WEAPON (2) ------- (None) > --- INVENTORY (5) ---- Sensor Array Signal Interpreter Light Armor Plating Hacking Suite Mining Laser Peak State ------------ > --- POWER ------------ Light Ion Engine > --- PROPULSION ------- Light Treads Light Treads > --- UTILITY ---------- Medium Storage Unit Seismic Detector > --- WEAPON ----------- Beam Cannon Assault Rifle > --- INVENTORY -------- Light Treads Sensor Array Signal Interpreter Light Armor Plating Light Armor Plating Light Armor Plating Hacking Suite Grenade Launcher Grenade Launcher Mining Laser [Rating: 8] Favorites ----------- Power Light Ion Engine Engine Light Ion Engine Propulsion Light Treads Treads Light Treads Utility Seismic Detector Device Seismic Detector Storage Medium Storage Unit Protection Light Armor Plating Weapon Assault Rifle Energy Gun Small Laser Energy Cannon Beam Cannon Ballistic Gun Assault Rifle Launcher Grenade Launcher Special Weapon Mining Laser Build | -11 -10 -10 ------- Run | Yrd Mat Sub Slots Evolved . | . . . Power . | . . . Propulsion . | . . . Utility . | . . . Weapon . | . . . Parts Attached 17 | 7 6 4 Power 3 | 1 1 1 Engine 3 | 1 1 1 Core . | . . . Reactor . | . . . Propulsion 3 | 2 1 . Treads 3 | 2 1 . Leg . | . . . Wheel . | . . . Hover . | . . . Flight . | . . . Utility 5 | 2 1 2 Device 2 | 1 . 1 Storage 2 | 1 1 . Processor . | . . . Hackware . | . . . Protection 1 | . . 1 Artifact . | . . . Weapon 6 | 2 3 1 Energy Gun 1 | 1 . . Energy Cannon 1 | . 1 . Ballistic Gun 1 | 1 . . Ballistic Cannon . | . . . Launcher 2 | . 1 1 Special Weapon 1 | . 1 . Impact Weapon . | . . . Slashing Weapon . | . . . Piercing Weapon . | . . . Special Melee Weapon . | . . . Unidentified Prototypes . | . . . Parts Lost 9 | . . 9 Power 2 | . . 2 Propulsion 3 | . . 3 Utility . | . . . Weapon 4 | . . 4 Highest Loss Streak 8 | . . 8 To Critical Strikes . | . . . Average Backups 7 | . 7 9 Power . | . . . Propulsion . | . . . Utility 4 | . 4 5 Weapon 2 | . 2 2 Tool/Special . | . . . Unused Backups 6 | . 2 4 Power . | . . . Propulsion 1 | . 1 . Utility 5 | . 1 4 Weapon . | . . . Tool/Special . | . . . Average Slot Usage (%) 95 | . 100 89 Engine 13 | . 14 11 Treads 26 | . 28 23 Device 13 | . 14 12 Storage 13 | . 14 13 Energy Gun 3 | . 5 . Energy Cannon 9 | . 7 12 Ballistic Gun 9 | . 13 3 Launcher 4 | . . 10 Peak Build Rating 8 | 7 8 8 Average Rating 7 | 5 7 7 On Entrance 5 | . 7 8 Avg Prop Armor Cover (%) . | . . . Naked Turns . | . . . Heaviest Build 20 | 12 19 20 Greatest Support 40 | 40 40 40 Greatest Overweight (x) 4 | . . 4 Average Overweight (x) . | . . . Largest Inventory Capacity 10 | 8 10 10 Average Capacity 8 | 7 8 9 Most Carried 10 | 1 10 10 Average Carried 7 | . 7 9 Final Capacity 10 | 8 10 5 Final Carried 10 | 1 10 5 Class Distribution -------------------- 100% | Mutant Dominant Class ---------------- Mutant | -10/Materials Mutant | -10/Subcaves Resources | -11 -10 -10 ----------- Run | Yrd Mat Sub Matter Collected 620 | 283 204 133 Remotely . | . . . Salvage Created 787 | 110 549 128 Parts 62 | 8 40 14 Haulers Intercepted 2 | . 2 . Recyclers Shooed 1 | . 1 . Parts Field Recycled . | . . . Retrieved Matter . | . . . Parts Self-Destructed 2 | . . 2 Prevented . | . . . Parts Restored . | . . . Kills | -11 -10 -10 ------- Run | Yrd Mat Sub Combat Hostiles Destroyed 20 | . 13 7 Guns 6 | . 6 . Cannons 6 | . 4 2 AOE 8 | . 3 5 Classes Destroyed 10 | 2 6 2 Worker 1 | . 1 . Tunneler 2 | 2 . . Hauler 2 | . 2 . Recycler 2 | 1 1 . Operator 1 | . 1 . Watcher 2 | . 2 . Swarmer 12 | . 9 3 Grunt 4 | . 4 . Artisan 1 | . . 1 Subdweller 4 | . . 4 Best Kill Streak 4 | 3 4 3 Combat Bots Only 4 | . 4 3 Max Kills in Single Turn 2 | 1 2 2 Gunslinging . | . . . Exploded 2 | . 2 1 Melee . | . . . Uniques/NPCs Destroyed . | . . . Combat | -11 -10 -10 -------- Run | Yrd Mat Sub Hostile Shots Fired 97 | . 56 41 Missed 23 | . 13 10 Hits 74 | . 43 31 Projectile 74 | . 43 31 AOE 4 | . . 4 Critical Strikes 4 | . 3 1 Damage Taken 1193 | . 369 824 Core 258 | . 35 223 Absorbed by Shields . | . . . Core Remaining (%) 100 | 100 . . Volleys Fired 65 | 5 40 20 Largest 2 | 2 2 2 Hottest 120 | 60 120 90 Shots Fired 126 | 10 79 37 Gun 72 | 10 59 3 Cannon 33 | . 16 17 Launcher 19 | . 2 17 Special 2 | . 2 . Kinetic 46 | 5 38 3 Thermal 61 | 5 39 17 Explosive 19 | . 2 17 Electromagnetic . | . . . Robot Hit Streak 9 | 4 6 9 Robot Miss Streak 5 | 1 5 2 Penetration Max . | . . . Secondary Targets 1 | . 1 . Max Gunslinging Chain 1 | . 1 . Shots Hit Robots 64 | 6 36 22 Core Hits 41 | 4 23 14 Critical Kills . | . . . Critical Parts Destroyed . | . . . Critical Strikes . | . . . Melee Attacks . | . . . Impact . | . . . Slashing . | . . . Piercing . | . . . Sneak Attacks . | . . . Combat Hostiles . | . . . Follow-up Attacks . | . . . Damage Inflicted 1857 | 68 807 982 Guns 432 | 67 338 27 Cannons 454 | . 227 227 Explosions 966 | . 238 728 Melee . | . . . Ramming 5 | 1 4 . Kinetic 262 | 35 200 27 Thermal 624 | 32 365 227 Explosive 966 | . 238 728 Electromagnetic . | . . . Impact . | . . . Slashing . | . . . Piercing . | . . . Highest Corruption . | . . . Average Corruption . | . . . Corruption Purged . | . . . Corruption Blocked . | . . . Overload Shots . | . . . Overflow Damage 37 | . 21 16 Projectiles . | . . . Explosions 37 | . 21 16 Melee . | . . . Knockbacks . | . . . Impact . | . . . Kinetic . | . . . Secondary . | . . . Self-Inflicted Damage 136 | . 17 119 Shots 5 | . 1 4 Rammed 3 | 1 2 . Targets Rammed 3 | 1 2 . Kicked . | . . . Crushed . | . . . Highest Temperature 66 | . 66 . Average Temperature 23 | . 23 . Received Heat Transfer 114 | . 36 78 Siege Activations . | . . . Martial Activations . | . . . Shielding Activations . | . . . Robots Disrupted . | . . . Combat Hostiles . | . . . Robots Corrupted . | . . . Combat Hostiles . | . . . Parts Fried . | . . . Impact Corruptions . | . . . Robots Melted . | . . . Combat Hostiles . | . . . Parts Melted 1 | . 1 . Heat Transferred 1337 | 75 781 481 Parts Sabotaged . | . . . Parts Stolen . | . . . Parts Stripped . | . . . Power Chain Reactions . | . . . Alert | -11 -10 -10 ------- Run | Yrd Mat Sub Maximum Alert Level . | . . . Low Security (%) 100 | 100 100 . Level 1 . | . . . Level 2 . | . . . Level 3 . | . . . Level 4 . | . . . Level 5 . | . . . High Security . | . . . Max Security . | . . . Peak Influence 120 | 10 120 . Initial . | . . . Average 56 | 1 62 . Influence Increases 558 | 15 473 70 Destroy 0b10 Robot/C 320 | . 260 60 Destroy 0b10 Robot/NC 50 | 15 35 . Destroy Leader 58 | . 48 10 Successful Hack 11 | . 11 . Disable Machine 15 | . 15 . Destroy Structure 14 | . 14 . Lose Combat Pursuer 90 | . 90 . Influence Decreases 558 | 15 378 165 Entered New Map 47 | . . 47 Time Decay 511 | 15 378 118 Squads Dispatched 1 | . 1 . Investigation 1 | . 1 . Extermination . | . . . Reinforcement . | . . . Assault . | . . . Garrison . | . . . Intercept . | . . . Searches Triggered . | . . . Construction Impeded . | . . . Haulers Reinforced . | . . . Active Scanning Responses . | . . . Cargo Convoy Interrupts . | . . . Stealth | -11 -10 -10 --------- Run | Yrd Mat Sub Distress Signals . | . . . Communications Jammed . | . . . Distress Signals . | . . . Times Spotted 37 | . 25 12 Peak Tracking Total 4 | . 4 3 Tactical Retreats 3 | . 3 . Traps | -11 -10 -10 ------- Run | Yrd Mat Sub Traps Triggered 1 | . 1 . Indirectly . | . . . Trap Hack Attempts . | . . . Triggered . | . . . Disarmed . | . . . Reprogrammed . | . . . Reused . | . . . Traps Extracted . | . . . Installed . | . . . Triggered . | . . . Machines | -11 -10 -10 ---------- Run | Yrd Mat Sub Machines Disabled 2 | . 2 . Max in Single Turn 1 | . 1 . Machines Repaired . | . . . Machines Dismantled . | . . . Machines Sabotaged . | . . . Overloaded Fab Kills . | . . . Hacking | -11 -10 -10 --------- Run | Yrd Mat Sub Machines Accessed 5 | . 5 . Terminals 5 | . 5 . Fabricators . | . . . Repair Stations . | . . . Recycling Units . | . . . Scanalyzers . | . . . Garrison Access . | . . . Total Hacks 9 | . 9 . Successful 5 | . 5 . Failed 4 | . 4 . Catastrophic 1 | . 1 . Database Lockouts . | . . . Manual 6 | . 6 . Terminals 9 | . 9 . Fabricators . | . . . Repair Stations . | . . . Recycling Units . | . . . Scanalyzers . | . . . Garrison Access . | . . . Terminal Hacks 5 | . 5 . Hauler Manifests 2 | . 2 . Zone Layout 3 | . 3 . Fabricator Hacks . | . . . Repair Station Hacks . | . . . Recycling Unit Hacks . | . . . Scanalyzer . | . . . Garrison Access Hacks . | . . . Unauthorized Hacks . | . . . Terminals . | . . . Fabricators . | . . . Repair Stations . | . . . Recycling Units . | . . . Scanalyzers . | . . . Garrison Access . | . . . Data Cores Recovered 1 | . 1 . Used . | . . . Hacking Detections 4 | . 4 . Full Trace Events . | . . . Feedback Events . | . . . Feedback Blocked . | . . . Robot Schematics Acquired . | . . . Robots Built . | . . . Authchips . | . . . Time . | . . . Total Robot Build Rating . | . . . Part Schematics Acquired . | . . . Parts Built . | . . . Authchips . | . . . Time . | . . . Total Part Build Rating . | . . . Part Studies Acquired . | . . . Parts Repaired . | . . . Time . | . . . Parts Recycled . | . . . Recycled Matter . | . . . Retrieved Matter . | . . . Retrieved Components . | . . . Parts Scanalyzed . | . . . Part Schematics Acquired . | . . . Parts Damaged . | . . . Bothacking | -11 -10 -10 ------------ Run | Yrd Mat Sub Used RIF Installer . | . . . Robots Hacked . | . . . Non-combat . | . . . Combat . | . . . Robot Hacks Applied . | . . . Relay Couplers Released . | . . . Fabnet Peak Effective % . | . . . Robots Rewired . | . . . Allies Hacked . | . . . Hacks Repelled . | . . . Allies | -11 -10 -10 -------- Run | Yrd Mat Sub Total Allies . | . . . Largest Group . | . . . Highest-Rated Group . | . . . Highest-Rated Ally . | . . . Total Orders . | . . . Ally Attacks . | . . . Total Damage . | . . . Kills . | . . . Allies Corrupted . | . . . Allies Melted . | . . . Intel | -11 -10 -10 ------- Run | Yrd Mat Sub Active Infowar (turns) 1888 | 52 1157 679 Sensors 658 | . . 658 Seismic 1230 | 52 1157 21 Robot Analysis Total . | . . . Derelict Logs Recovered 2 | . . 2 Drone Launches . | . . . Drone Recoveries . | . . . Exploration | -11 -10 -10 ------------- Run | Yrd Mat Sub Turns Passed 2067 | 120 1157 790 Spaces Moved 1046 | 60 503 483 Core 108 | 3 . 105 Treads 938 | 57 503 378 Legs . | . . . Wheels . | . . . Hover . | . . . Flight . | . . . Fastest Speed 50 | 50 160 50 Average Speed 150 | 154 160 139 Slowest Speed 250 | 160 160 250 Overloaded Moves . | . . . Propulsion Burnouts . | . . . Robots Hopped . | . . . Potential Cave-ins . | . . . Cave-ins Triggered . | . . . Exploration Rate (%) 38 | 4 84 28 Regions Visited 2 Branch Regions 1 Pre-discovered Areas . | . . . Known Exits Taken . | . . . Unknown Exits Taken 2 | 1 1 . Scrap Searched . | . . . Spaces Dug . | . . . Terrain Destroyed 89 | . 13 76 Melee . | . . . Projectile 1 | . 1 . AOE 88 | . 12 76 Terrain Rammed . | . . . Walls Destroyed . | . . . Machines Disabled . | . . . Actions | -11 -10 -10 --------- Run | Yrd Mat Sub Total 1404 | 73 771 560 Wait 249 | . 203 46 Move 1044 | 59 502 483 Hop . | . . . Pick Up 13 | 1 11 1 Fast Attach 8 | 7 . 1 Attach 3 | . . 3 Detach . | . . . Swap 11 | . 8 3 Drop 8 | . 5 3 Fire 65 | 5 40 20 Melee . | . . . Ram . | . . . Kick . | . . . Crush 3 | 1 2 . Escape Stasis . | . . . Rewire . | . . . Trap . | . . . Miscellaneous . | . . . Route ------- -11/Scrapyard -10/Materials (discovered 4 exits: [*Mat x2] / [*Min] / [*Sub]) -10/Subcaves History --------- Turn | Location | Event 14 | -11/Scrapyard | Discovered new exit (range 16) 121 | -11/Scrapyard | Entered Materials 312 | -10/Materials | Build established: Mutant 505 | -10/Materials | Discovered new exit (range 12) 640 | -10/Materials | Discovered new exit (range 15) 1049 | -10/Materials | Discovered new exit (range 12) 1270 | -10/Materials | Discovered new exit (range 6) 1278 | -10/Materials | Entered Subcaves 1280 | -10/Subcaves | Learned location of 1 exit from Materials 1294 | -10/Subcaves | A swath of the cavern ceiling suddenly collapsed 1350 | -10/Subcaves | Learned Materials security intel 1929 | -10/Subcaves | Core integrity fell below 50% 1982 | -10/Subcaves | Lost 8 parts (2p3n3w) 2027 | -10/Subcaves | Core integrity fell below 20% 2068 | -10/Subcaves | Destroyed by VL-7QA(R) with Subdweller Beam Cannon Last Messages --------------- 01937_ Acquired 20 matter. 01941_ O0-HGJ(R): "WEHOME!" 01943_ Acquired Lgt. Ion Engine. 01945_ Lgt. Ion Engine destroyed. 01949_ Grenade Launcher destroyed. 01951_ The unstable cave ceiling collapses. 01951_ Lgt. Treads destroyed. 01951_ Grenade Launcher destroyed. 01951_ Beam Cannon destroyed. 01958_ The unstable cave ceiling collapses. 02015_ Dropped Med. Storage Unit. 02017_ Dropped Seismic Detector. 02017_ Acquired Hacking Suite. 02021_ Critical hit (Destroy). 02021_ Dropped Lgt. Armor Plating. 02022_ Subatomizers dissect the Seismic Detector. 02030_ 8B-KV5(R) destroyed. 02034_ Subatomizers dissect the Sub. Monowheel. 02068_ Assault Rifle destroyed. Map ----- +----------------------------------------------------+ | ???????????????????????????????? =[ | | ????????????????????????????????? ### | | ??????????????????????????????????????#### ## | | ?????????????????????????????????????????## ## | | ??????????????????????????????????????###?## #? | | ???????????????????###???????????????## #### #? | | ???????????????????# #??????????????## ## | | ???????????????????# ##??????#####?## # | | ???????????????????# ##?????# ### | | ???????????????????# #?????# ! | | ???????????????????## #?????# | | ????????????????????# #?????# | | ??????????????????### #?????## ! ! # | | ?????????????????## #??????## ""!## | | ?????????????????# #?????#### """ | | ?????????????????### ##???## ## ##""" | | ?????????????????### ##?## ## | | ?????????????????# #?# ### ! | | ?????????????????# #?# ##?## " | | ?????????????????# ###R #???### " | | ?????????????????# ## ## #?????###### # | | ?????????????????# R #########?????# | | ?????????????????# ### #?????## | | ?????????????????## ## #??????#" | | ??????????????????## #??????#" ### | | ??????????????????## @ #?????# ""#### | | ?????????????????## ### #????## " #?? | | ????????????????## ##?# ## ##??## " #?? | | ????????????????# #??# ### #??# "#??? | | ????????????????# #######?## ## #### "#???? | | ????????????????# ### ##???# # # #????? | | ????????????????## ### ##### # # ###????? | | ?????????????????#### ## ### ####??????? | | ????????????????????# & #?????????? | | ????????????????????## "##?????????? | | ????????????????####?# ##??????????? | | ????????????????# ## ##???????????? | | ?????????????????# #???????????? | | ?????????????????# ## #???????????? | | ????????????????## #### ????????? | | ????????????????# ##??# ?????? | | ????????????????# % ##???## ## # ?????? | | ????????????????## ##????## ##?##? "????? | | ????????????#????##% #?????# #????? ? ????? | | ???????????? ?????## #?????# ##???? ?#???? | | ????????????? ?????# ###?????####?????# #?????? | | ???????????##? ???##"% ##??????????###???# ##????? | | ???????????#"## ###""# #????#####?? #??## ##???? | | ???????????#""# #"#"""##????# ### #?## #???? | | ??????????###"####"""##?????# #?## #???? | +----------------------------------------------------+ Best States ------------- Heat Dissipation 25 Energy Generation 10 Energy Capacity 125 Matter Stores 300 Matter Capacity 300 Sight Range 16 Robot Scan Range 14 Terrain Scan Density 10 Armor Coverage 150 Evasion (%) 50 Recoil Reduction 2 Item Schematics ----------------- None Robot Schematics ------------------ None Fabricated ------------ Nothing Repaired ---------- Nothing Studied --------- None Alien Tech Used ----------------- None Achievements -------------- None Challenges ------------ None Game ------ Seed OvertunedUltimateThrower Manual? 0 Play Time 00:11:11 Cumulative 147.6 hours Start 2026.04.21 @ 11:47:57 End 2026.04.21 @ 11:57:53 Sessions 1 Manual Loads 0 Difficulty Rogue Special Mode None Game No. 229 Rogue 229 Adventurer 0 Explorer 0 Win Type - Total 1 Types 1/0/0/0/0/0/0/0/0/0 Lore% 52 Gallery% 55 Achievement% 42 Wizard Run 0 Options --------- Layout 1 ASCII 0 Keyboard 1 Movement Arrows Keybinds 0 Fullscreen 1 Font 24/Smallcaps Map View 50x35 Zoom Use 0% Tactical HUD 1 Map Filters NONE Filters NONE Steam 1 RUN: 34a36b5e-54f2-40b1-8dc3-f922c0b1397a